bitfinex-derivatives/quotes_ETHF0:USTF0_20250326
["timestamp","ask_amount","ask_price","bid_price","bid_amount"]
[1743025442754,0.99753,2004.7,2004.6,1.3927]
[1743025443254,1.65362,2004.8,2004.7,0.99753]
[1743025443451,3.09532,2004.8,2004.7,0.99753]
[1743025443645,3.09532,2004.8,2004.7,2.39023]
[1743025446052,3.09532,2004.8,2004.7,1.3927]
[1743025447757,0.99758,2004.6,2004.5,4.20539]
[1743025447955,0.99758,2004.6,2004.5,4.5368]
[1743025448457,2.42778,2004.6,2004.5,4.5368]
[1743025449351,2.42778,2004.6,2004.5,5.53443]
[1743025449557,0.99758,2004.6,2004.5,5.53443]
[1743025450152,2.41018,2004.6,2004.5,5.53443]
[1743025450351,2.41018,2004.6,2004.5,2.32663]
[1743025450845,2.41018,2004.6,2004.5,0.99763]
[1743025454957,0.99757,2004.7,2004.6,0.99753]
[1743025455154,0.99757,2004.7,2004.6,2.41693]
[1743025456862,2.41607,2004.7,2004.6,2.41693]
[1743025457461,0.99758,2004.6,2004.5,4.20539]
[1743025457649,2.41608,2004.6,2004.5,5.54579]
[1743025463261,0.99756,2004.7,2004.6,0.99753]
[1743025463462,0.99756,2004.7,2004.6,2.33383]
[1743025463662,2.31986,2004.7,2004.6,2.33383]
[1743025464667,2.31986,2004.7,2004.6,2.33388]
[1743025464969,2.31986,2004.7,2004.6,1.3363]
[1743025465663,2.31986,2004.7,2004.6,2.33388]
[1743025469566,0.99758,2004.6,2004.5,3.2078]
[1743025469867,3.02078,2004.6,2004.5,3.2078]
[1743025470271,0.99778,2004.2,2004.1,5.5764]
[1743025470472,0.99778,2004.2,2004.1,42.1708]
[1743025470664,0.99783,2004.1,2004.0,0.99785]
[1743025470864,2.32153,2004.1,2004.0,2.36865]
[1743025471374,2.32153,2004.1,2004.0,40.8]
[1743025471669,0.99788,2004.0,2003.9,1.4424]
[1743025471871,2.41348,2004.0,2003.9,1.4424]
[1743025472271,2.41348,2004.0,2003.9,42.2424]
[1743025473670,5.62128,2004.0,2003.9,42.2424]
[1743025474479,5.62128,2004.0,2003.9,43.24033]
[1743025474873,5.62128,2004.0,2003.9,42.2424]
[1743025475069,5.62128,2004.0,2003.9,43.24033]
[1743025475674,5.62128,2004.0,2003.9,42.2424]
[1743025478466,5.62128,2004.0,2003.9,40.8]
[1743025478662,0.99798,2003.8,2003.7,1.4423]
[1743025479276,2.33338,2003.8,2003.7,1.4423]
[1743025486684,0.99795,2003.9,2003.7,1.4423]
[1743025486879,4.20574,2004.0,2003.9,0.99793]
[1743025487184,0.99798,2003.9,2003.8,0.99794]
[1743025487380,0.99798,2003.9,2003.8,2.34644]
[1743025489779,4.20571,2004.0,2003.9,0.99793]
[1743025489986,4.20571,2004.0,2003.9,2.42373]
[1743025490985,3.2078,2004.0,2003.9,2.42373]
[1743025491187,4.20568,2004.0,2003.9,1.4258]
[1743025491481,5.61478,2004.0,2003.9,1.4258]
[1743025491885,5.61478,2004.0,2003.9,2.42373]
[1743025492185,3.2078,2004.0,2003.9,2.42373]
[1743025492488,0.99788,2004.1,2004.0,0.99784]
[1743025492785,0.99788,2004.1,2004.0,1.69774]
[1743025493087,4.6169,2004.3,2003.6,3.21528484]
[1743025493387,0.99798,2003.9,2003.8,0.99795]
[1743025493983,0.99798,2003.9,2003.8,2.31955]
[1743025495501,0.99803,2003.7,2003.6,1.00553484]
[1743025496790,0.99803,2003.7,2003.6,2.35233484]
[1743025497192,4.20583,2003.7,2003.6,0.00748484]
[1743025499496,0.99818,2003.4,2003.3,42.1844]
[1743025499691,4.20598,2003.4,2003.3,42.1844]
[1743025500386,4.20598,2003.4,2003.3,43.18263]
[1743025500585,4.20598,2003.4,2003.3,42.1844]
[1743025500792,4.20598,2003.4,2003.3,43.18263]
[1743025500985,3.2078,2003.4,2003.3,43.18263]
[1743025501291,2.11721704,2003.5,2003.4,0.99818]
[1743025501486,0.99828,2003.2,2003.1,1.00578484]
[1743025501891,0.99828,2003.2,2003.1,41.80578484]
[1743025502784,0.99828,2003.2,2003.1,43.17038484]
[1743025502997,0.99828,2003.2,2003.1,40.80748484]
[1743025503182,1.66388,2003.2,2003.1,0.00748484]
[1743025503388,4.99588,2003.2,2003.1,0.00748484]
[1743025504191,6.41788,2003.2,2003.1,0.00748484]
[1743025504998,0.99843,2002.9,2002.8,40.8]
[1743025505185,0.99853,2002.7,2002.6,1.3646]
[1743025505692,2.7413,2002.8,2002.5,44.0078]
[1743025505693,0.99858,2002.6,2002.5,44.0078]
[1743025505893,2.34588,2002.6,2002.5,40.8]
[1743025506090,0.99863,2002.5,2002.4,1.4067]
[1743025506397,2.34593,2002.5,2002.4,1.4067]
[1743025506995,0.99868,2002.4,2002.3,0.00748484]
[1743025507194,3.03788,2002.4,2002.3,0.00748484]
[1743025507791,3.03788,2002.4,2002.3,40.80748484]
[1743025508894,3.03788,2002.4,2002.3,42.13678484]
[1743025509796,0.99893,2002.0,2001.9,0.99891]
[1743025510095,0.99893,2001.9,2001.8,1.69785]
[1743025510297,0.99893,2001.9,2001.8,42.49785]
[1743025511694,0.99898,2001.8,2001.7,0.99901]
[1743025511998,0.99903,2001.8,2001.7,0.999]
[1743025512299,5.67996,2001.9,2001.8,0.99898]
[1743025512992,1.346,2001.9,2001.8,0.99898]
[1743025513296,1.6803,2002.0,2001.9,0.99893]
[1743025513703,0.999,2001.9,2001.8,0.99894]
[1743025514000,2.345,2001.9,2001.8,0.99894]
[1743025514297,2.345,2001.9,2001.8,41.79894]
[1743025515296,0.999,2001.9,2001.8,41.79894]
[1743025515499,1.68032,2002.0,2001.9,0.99893]
[1743025515699,3.2078,2002.2,2002.1,0.99883]
[1743025515889,6.26918,2002.5,2002.4,0.99868]
[1743025516296,2.0627,2002.5,2002.4,0.99868]
[1743025516494,1.00609484,2002.6,2002.5,0.99863]
[1743025518196,0.00748484,2002.6,2002.5,0.99863]
[1743025520101,1.00608484,2002.6,2002.5,0.99863]
[1743025520307,0.00748484,2002.6,2002.5,0.99863]
[1743025520807,0.00748484,2002.6,2002.5,2.41293]
[1743025520999,2.49585,2003.1,2002.8,0.9984]
[1743025521306,2.49585,2003.1,2002.9,1.4143]
[1743025521307,0.99844,2003.0,2002.9,1.4143]
[1743025521804,2.35214,2003.0,2002.9,1.4143]
[1743025522100,2.35214,2003.0,2002.9,2.41269]
[1743025522303,0.00748484,2003.2,2002.9,3.91036]
[1743025522506,0.00748484,2003.2,2003.1,4.20613]
[1743025522808,0.00748484,2003.2,2003.1,5.62043]
[1743025523106,0.00748484,2003.2,2003.1,46.42043]
[1743025523708,2.0117,2003.6,2003.5,0.99813]
[1743025524007,0.99807,2003.7,2003.6,0.99803]
[1743025526106,0.99807,2003.7,2003.6,2.35533]
[1743025526905,0.99813,2003.5,2003.4,4.20595]
[1743025527100,0.99813,2003.5,2003.4,4.6499]
[1743025527406,3.88804,2003.6,2003.2,0.99824]
[1743025527707,0.99823,2003.3,2003.2,1.4421]
[1743025528007,0.99823,2003.3,2003.2,2.44038]
[1743025528204,2.39103,2003.3,2003.2,2.44038]
[1743025528608,4.20592,2003.6,2003.5,0.99813]
[1743025528809,0.99812,2003.6,2003.5,0.99813]
[1743025530713,2.39082,2003.8,2003.7,0.99803]
[1743025533107,0.00748484,2003.9,2003.8,0.99798]
[1743025533413,0.00748484,2003.9,2003.8,2.35098]
[1743025533610,0.00748484,2003.9,2003.8,5.75098]
[1743025534005,7.13829,2004.5,2004.3,0.99773]
[1743025534006,0.99771,2004.4,2004.3,0.99773]
[1743025534204,3.81778,2004.5,2004.4,0.99768]
[1743025534407,3.09468,2004.5,2004.4,0.99768]
[1743025534718,3.09463,2004.5,2004.4,0.99768]
[1743025535014,0.9976,2004.7,2004.6,0.99756]
[1743025535210,2.3813,2004.7,2004.6,0.99756]
[1743025537613,1.3837,2004.7,2004.6,0.99756]
[1743025537819,4.91861,2004.8,2004.7,0.99753]
[1743025538116,3.9211,2004.8,2004.7,0.99753]
[1743025538814,1.429,2004.9,2004.8,0.99748]
[1743025540723,0.7208,2005.3,2005.1,0.99728]
[1743025540913,0.9973,2005.2,2005.1,0.99728]
[1743025542213,2.394,2005.2,2005.1,0.99728]
[1743025545319,0.99738,2005.1,2005.0,0.99735]
[1743025545519,2.41758,2005.1,2005.0,0.99735]
[1743025545913,1.4202,2005.1,2005.0,0.99735]
[1743025546714,1.3859,2005.3,2005.2,0.99728]
[1743025546925,1.4202,2005.4,2005.3,0.99723]
[1743025547422,1.70105,2005.7,2005.6,0.99708]
[1743025547622,3.79775,2005.7,2005.6,0.99708]
[1743025548918,2.8007,2005.7,2005.6,0.99708]
[1743025549613,2.0967,2005.7,2005.6,41.79708]
[1743025550018,2.0967,2005.7,2005.6,0.99708]
[1743025550316,6.42193,2006.0,2005.9,0.99693]
[1743025550317,1.71883,2006.0,2005.9,0.99693]
[1743025550622,3.08243,2006.0,2005.9,0.99693]
[1743025551122,3.08243,2006.0,2005.9,2.35413]
[1743025553819,2.36053,2006.0,2005.9,2.35413]
[1743025554920,0.99693,2006.0,2005.9,2.35413]
[1743025555324,1.3435,2006.1,2006.0,0.99688]
[1743025555533,2.34033,2006.1,2006.0,2.36418]
[1743025555825,0.99683,2006.1,2006.0,2.36418]
[1743025556124,3.05951,2006.2,2006.1,0.99683]
[1743025558617,3.113,2006.4,2006.3,0.99674]
[1743025558821,0.99667,2006.5,2006.4,0.99669]
[1743025559216,2.4916,2006.5,2006.2,4.53]
[1743025559416,0.99678,2006.2,2006.1,0.00748484]
[1743025559813,0.99678,2006.2,2005.7,1.3222]
[1743025559814,0.99698,2005.8,2005.7,1.3222]
[1743025569235,0.99698,2005.8,2005.7,2.31923]
[1743025569830,0.99698,2005.8,2005.7,1.3222]
[1743025571339,2.33658,2005.8,2005.7,1.3222]
[1743025574150,0.99708,2005.6,2005.5,1.00457484]
[1743025574347,0.99708,2005.6,2005.5,2.36687484]
[1743025574849,2.35958,2005.6,2005.5,2.36687484]
[1743025575649,2.35958,2005.6,2005.5,1.36978484]
[1743025575848,2.35958,2005.6,2005.5,2.36691484]
[1743025576453,0.99708,2005.6,2005.5,2.36691484]
[1743025576952,0.99708,2005.6,2005.5,43.16691484]
[1743025577451,2.40448,2005.6,2005.5,42.16978484]
[1743025577647,2.40448,2005.6,2005.5,43.16691484]
[1743025579856,2.40448,2005.6,2005.5,1.36978484]
[1743025580246,2.40448,2005.6,2005.5,2.36691484]
[1743025580451,0.99708,2005.6,2005.5,1.36978484]
[1743025580648,0.99708,2005.6,2005.5,2.36691484]
[1743025585756,2.29978,2005.6,2005.5,1.36978484]
[1743025585954,2.29978,2005.6,2005.5,2.36691484]
[1743025588860,2.29978,2005.6,2005.5,1.36978484]
[1743025590265,2.29978,2005.6,2005.5,2.36691484]
[1743025590762,0.99708,2005.6,2005.5,2.36691484]
[1743025591164,2.37188,2005.6,2005.5,2.36691484]
[1743025591358,2.37188,2005.6,2005.5,1.36978484]
[1743025595765,2.37188,2005.6,2005.5,0.00748484]
[1743025612681,0.99723,2005.3,2005.2,3.2078]
[1743025612977,0.99718,2005.4,2005.3,1.3573]
[1743025613184,0.99728,2005.2,2005.1,0.679]
[1743025614178,4.30197497,2005.3,2004.9,4.21267484]
[1743025614385,0.99738,2005.0,2004.9,4.92017484]
[1743025615781,0.99738,2005.0,2004.9,6.36317484]
[1743025619387,0.99738,2005.0,2004.9,2.15798484]
[1743025621482,0.99738,2005.0,2004.9,1.45048484]
[1743025623287,4.20518,2005.0,2004.9,1.45048484]
[1743025624384,2.11692433,2005.1,2004.9,1.45048484]
[1743025624685,0.9972,2005.4,2005.3,0.99723]
[1743025625279,0.9972,2005.4,2005.3,2.32053]
[1743025627989,0.9972,2005.4,2005.3,3.13063]
[1743025629891,0.99717,2005.5,2005.4,0.99716]
[1743025630083,0.99717,2005.5,2005.4,2.31826]
[1743025634489,0.99713,2005.6,2005.5,0.99709]
[1743025636496,0.99713,2005.6,2005.5,41.79709]
[1743025638401,0.99713,2005.6,2005.5,0.99709]
[1743025638903,0.99713,2005.6,2005.5,41.79709]
[1743025645815,2.30893,2005.6,2005.5,41.79709]
[1743025647414,0.99718,2005.5,2005.4,0.99715]
[1743025647618,0.99718,2005.4,2005.3,4.20499]
[1743025648114,0.99718,2005.4,2005.2,2.43474]
[1743025648115,0.99723,2005.3,2005.2,2.43474]
[1743025648313,0.99723,2005.3,2005.2,1.4375]
[1743025648525,0.99733,2005.1,2005.0,4.20518]
[1743025648819,0.99733,2005.1,2005.0,5.61398]
[1743025649210,2.37163,2005.1,2005.0,5.61398]
[1743025650021,2.37163,2005.1,2005.0,3.2078]
[1743025650222,0.99738,2005.0,2004.9,1.00488484]
[1743025650410,2.35668,2005.0,2004.9,0.00748484]
[1743025650808,0.99748,2004.8,2004.7,4.6166]
[1743025651313,0.99748,2004.8,2004.7,45.4166]
[1743025651519,0.99748,2004.8,2004.7,46.41413]
[1743025653011,0.99748,2004.8,2004.7,45.4166]
[1743025653520,0.99748,2004.8,2004.7,46.41413]
[1743025654519,0.00748484,2005.0,2004.7,45.4166]
[1743025654718,0.00748484,2005.0,2004.9,0.99743]
[1743025655116,2.40356484,2005.0,2004.9,0.99743]
[1743025655322,2.40356484,2005.0,2004.9,41.79743]
[1743025656323,2.40356484,2005.0,2004.9,42.46373]
[1743025659230,1.00486484,2005.0,2004.9,42.46373]
[1743025659935,1.00486484,2005.0,2004.9,43.79783]
[1743025660131,2.39786484,2005.0,2004.9,43.79783]
[1743025662130,2.39786484,2005.0,2004.9,43.13153]
[1743025667535,1.00486484,2005.0,2004.9,43.13153]
[1743025668538,2.43186484,2005.0,2004.9,43.13153]
[1743025671935,2.43186484,2005.0,2004.9,0.99743]
[1743025672441,2.43186484,2005.0,2004.9,2.30933]
[1743025675340,1.00486484,2005.0,2004.9,2.30933]
[1743025675734,2.33696484,2005.0,2004.9,2.30933]
[1743025679245,2.33696484,2005.0,2004.9,1.3119]
[1743025679744,2.33696484,2005.0,2004.9,2.30933]
[1743025680345,1.00486484,2005.0,2004.9,2.30933]
[1743025681245,2.44976484,2005.0,2004.9,2.30933]
[1743025684150,1.00486484,2005.0,2004.9,2.30933]
[1743025685848,2.35676484,2005.0,2004.9,2.30933]
[1743025686341,1.00486484,2005.0,2004.9,2.30933]
[1743025689141,2.38106484,2005.0,2004.9,2.30933]
[1743025693545,2.38106484,2005.0,2004.9,5.51713]
[1743025697958,1.00486484,2005.0,2004.9,5.51713]
[1743025700450,0.00748484,2005.0,2004.9,5.51713]
[1743025700651,1.08113021,2005.2,2005.1,0.99733]
[1743025700861,2.3017,2005.6,2005.5,0.99713]
[1743025701460,2.3017,2005.6,2005.5,2.42973]
[1743025705170,0.9971,2005.6,2005.5,2.42973]
[1743025708069,2.43277,2005.7,2005.6,0.99708]
[1743025708376,2.43277,2005.7,2005.6,2.38078]
[1743025713082,2.43277,2005.7,2005.6,0.99708]
[1743025713279,0.99713,2005.5,2005.4,4.20495]
[1743025715179,1.65353,2005.5,2005.4,4.20495]
[1743025715678,1.65353,2005.5,2005.4,0.99715]
[1743025727680,1.65353,2005.5,2005.4,1.66405]
[1743025729083,1.65353,2005.5,2005.4,4.87185]
[1743025729279,0.99713,2005.5,2005.4,4.87185]
[1743025729480,0.99713,2005.6,2005.5,0.99708]
[1743025729678,0.99713,2005.6,2005.5,2.33918]
[1743025730075,2.41473,2005.6,2005.5,2.33918]
[1743025733491,1.10226723,2005.8,2005.7,0.99703]
[1743025733685,1.10226723,2005.8,2005.7,9.99283]
[1743025734082,1.10226723,2005.8,2005.7,50.79283]
[1743025734282,0.00748484,2005.8,2005.7,50.79283]
[1743025734979,0.00748484,2005.8,2005.7,52.16563]
[1743025739889,0.00748484,2005.8,2005.7,49.66563]
[1743025744284,4.84e-06,2005.8,2005.7,52.16563]
[1743025747791,0.6921,2006.4,2006.3,0.99674]
[1743025748196,2.0809,2006.4,2006.3,0.99674]
[1743025748700,2.0809,2006.4,2006.3,2.39924]
[1743025749398,2.0809,2006.4,2006.3,0.99674]
[1743025749600,3.07759,2006.4,2006.3,0.99674]
[1743025751401,2.0809,2006.4,2006.3,2.39924]
[1743025753604,3.07759,2006.4,2006.3,2.39924]
[1743025759419,3.07759,2006.4,2006.3,5.60704]
[1743025759819,2.0809,2006.4,2006.3,5.60704]
[1743025761514,1.69548,2006.5,2006.4,0.99669]
[1743025761718,3.06228,2006.5,2006.4,2.38459]
[1743025762418,2.0656,2006.5,2006.4,2.38459]
[1743025763726,3.06224,2006.5,2006.4,2.38459]
[1743025768832,3.06224,2006.5,2006.4,5.59239]
[1743025769433,2.0656,2006.5,2006.4,5.59239]
[1743025769633,3.06224,2006.5,2006.4,5.59239]
[1743025769930,0.99664,2006.5,2006.4,5.59239]
[1743025770130,61.23011927,2008.3,2007.0,3.2078]
[1743025770331,26.54142875,2008.2,2008.1,3.2078]
[1743025770627,26.54142875,2008.2,2007.4,4.98076]
[1743025770628,4.97985,2007.9,2007.4,3.2078]
[1743025770830,0.99614,2007.5,2007.4,3.2078]
[1743025771025,0.99614,2007.5,2007.4,4.20399]
[1743025771223,0.99614,2007.5,2007.4,3.2078]
[1743025771429,0.99614,2007.5,2007.4,4.20399]
[1743025775038,3.2078,2008.3,2007.8,0.99599]
[1743025775235,0.6824,2007.9,2007.8,0.99599]
[1743025775436,3.2078,2008.6,2008.5,0.99564]
[1743025775635,3.8762,2008.6,2008.5,0.99564]
[1743025776233,0.6684,2008.6,2008.5,0.99564]
[1743025777046,3.2078,2009.6,2009.2,2.48814]
[1743025777240,3.2078,2009.6,2009.5,0.99515]
[1743025777436,3.2078,2009.9,2009.5,3.2078]
[1743025777746,0.9951,2009.6,2009.5,3.2078]
[1743025778133,0.9952,2009.4,2009.3,0.00746491]
[1743025779646,2.48751,2009.8,2009.3,0.00746491]
[1743025779839,2.48766,2009.7,2009.3,0.00746491]
[1743025780040,0.9952,2009.4,2009.3,0.00746491]
[1743025780434,6.9332,2009.4,2009.3,0.00746491]
[1743025780633,2.48832,2009.2,2008.6,3.434]
[1743025780837,0.99554,2008.7,2008.6,3.2078]
[1743025781142,0.99554,2008.7,2008.6,4.20339]
[1743025781447,0.99554,2008.7,2008.6,3.2078]
[1743025781640,2.31542,2008.8,2008.6,3.2078]
[1743025781846,0.99554,2008.7,2008.6,3.2078]
[1743025782044,0.99564,2008.5,2008.4,0.00746491]
[1743025783638,2.36814,2008.5,2008.4,0.00746491]
[1743025783841,3.06464,2008.5,2008.4,0.00746491]
[1743025784442,3.06464,2008.5,2008.4,1.00315491]
[1743025784643,3.06464,2008.5,2008.4,0.00746491]
[1743025785042,3.06464,2008.5,2008.4,1.00315491]
[1743025785643,0.00739848,2008.9,2008.6,2.48899]
[1743025785843,5.83,2009.2,2009.1,0.99535]
[1743025786043,0.6778,2009.5,2009.4,0.9952]
[1743025786249,1.4447,2009.7,2009.6,0.9951]
[1743025786438,0.99502,2009.8,2009.7,0.995]
[1743025786747,2.43963,2010.0,2009.9,0.99495]
[1743025787149,4.20262,2010.2,2010.1,0.99485]
[1743025788351,1.4447,2010.4,2009.9,2.48738]
[1743025788655,0.99485,2010.2,2010.1,0.99483]
[1743025788854,0.99485,2010.1,2010.0,4.20266]
[1743025789152,0.99484,2010.2,2010.1,0.99484]
[1743025790351,0.99485,2010.1,2010.0,4.20266]
[1743025790654,0.99485,2010.1,2010.0,3.2078]
[1743025790854,0.995,2009.8,2009.7,4.21028491]
[1743025791657,0.995,2009.8,2009.7,0.00746491]
[1743025792249,0.99515,2009.5,2009.4,3.2078]
[1743025792944,2.5,2009.5,2009.0,3.2078]
[1743025793251,0.99535,2009.1,2009.0,3.2078]
[1743025793452,0.99559,2008.7,2008.6,4.20336]
[1743025793753,0.99559,2008.7,2008.6,4.5939]
[1743025794151,0.99559,2008.7,2008.6,5.58949]
[1743025795056,0.99559,2008.7,2008.6,2.1235]
[1743025795249,0.99564,2008.5,2008.4,0.00746491]
[1743025795450,4.48464,2008.5,2008.4,0.00746491]
[1743025796657,0.99562,2008.6,2008.4,0.00746491]
[1743025796862,6.82558,2008.7,2008.6,0.99559]
[1743025797461,5.83,2008.7,2008.6,0.99559]
[1743025798362,5.83,2008.7,2008.6,41.79559]
[1743025798956,0.99545,2008.9,2008.8,0.99545]
[1743025799156,3.2078,2009.0,2008.7,3.86344]
[1743025799355,4.20325,2009.0,2008.9,0.99545]
[1743025799655,0.99545,2009.0,2008.9,0.99545]
[1743025800662,0.99545,2009.0,2008.9,2.39335]
[1743025801165,0.99545,2009.0,2008.9,1.3979]
[1743025802661,4.97675,2009.1,2008.5,4.2034]
[1743025802864,5.5917,2009.2,2008.5,4.2034]
[1743025802865,0.99559,2008.6,2008.5,4.6057]
[1743025803862,0.99564,2008.5,2008.4,0.00746491]
[1743025804065,2.31214,2008.5,2008.4,0.00746491]
[1743025805061,3.2078,2009.0,2008.4,0.00746491]
[1743025805267,0.99561,2008.7,2008.6,4.20337]
[1743025805458,1.3165,2008.8,2008.7,0.99554]
[1743025805656,0.99554,2008.7,2008.6,44.0078]
[1743025805959,0.99564,2008.5,2008.4,1.00312491]
[1743025806159,0.99564,2008.5,2008.4,2.32002491]
[1743025806361,0.99564,2008.5,2008.4,43.12002491]
[1743025811765,0.99564,2008.5,2008.4,42.12436491]
[1743025812068,0.99564,2008.5,2008.4,43.12005491]
[1743025812571,0.99564,2008.5,2008.4,42.12436491]
[1743025821972,0.99559,2008.7,2008.6,0.99556]
[1743025823074,2.41749,2008.7,2008.6,0.99556]
[1743025823679,0.99559,2008.7,2008.6,2.42266]
[1743025824370,4.20333,2008.8,2008.7,0.99554]
[1743025824566,4.20333,2008.8,2008.7,43.22264]
[1743025825069,4.20333,2008.8,2008.7,2.42264]
[1743025825671,4.20333,2008.8,2008.7,43.22264]
[1743025827667,3.91044,2009.0,2008.8,0.99545]
[1743025827871,2.4173,2009.0,2008.9,2.30225]
[1743025828276,2.4173,2009.0,2008.9,1.3068]
[1743025828475,0.9954,2009.0,2008.9,2.30225]
[1743025828969,0.9954,2009.0,2008.9,1.3068]
[1743025829883,2.3169,2009.0,2008.9,1.3068]
[1743025835582,0.99549,2008.8,2008.7,4.2033]
[1743025836386,0.99549,2008.8,2008.7,3.2078]
[1743025837178,2.33579,2008.8,2008.7,4.5531]
[1743025843187,0.99549,2008.8,2008.7,4.5531]
[1743025844488,0.99549,2008.8,2008.7,5.2678]
[1743025845192,0.99549,2008.8,2008.7,6.26334]
[1743025846093,0.99549,2008.8,2008.7,5.2678]
[1743025846594,2.33529,2008.8,2008.7,5.2678]
[1743025847094,0.99549,2008.8,2008.7,6.26334]
[1743025850595,3.82821,2009.1,2008.7,8.75216]
[1743025850898,3.82821,2009.1,2008.9,0.99541]
[1743025850899,0.99545,2009.0,2008.9,0.99541]
[1743025851097,0.99545,2009.0,2008.9,2.36411]
[1743025852606,3.21526491,2009.5,2008.9,1.3687]
[1743025852795,3.21526491,2009.5,2009.2,2.48816]
[1743025853002,3.21526491,2009.5,2009.4,0.9952]
[1743025853403,3.21526491,2009.5,2009.4,2.4095]
[1743025853604,0.00746491,2009.5,2009.4,5.6173]
[1743025854406,1.00261491,2009.5,2009.4,5.6173]
[1743025854715,0.00746491,2009.5,2009.4,5.6173]
[1743025855205,0.99496,2009.9,2009.8,0.99495]
[1743025855409,0.7021,2010.0,2009.7,3.2078]
[1743025855607,0.99493,2010.0,2009.9,0.99495]
[1743025855995,5.59438,2010.1,2009.9,1.3371]
[1743025856196,4.20268,2010.1,2010.0,0.9949]
[1743025856702,4.20268,2010.1,2010.0,2.332]
[1743025857406,3.2078,2010.1,2010.0,2.332]
[1743025857607,4.20265,2010.1,2010.0,2.332]
[1743025857910,4.20265,2010.1,2009.8,43.95828491]
[1743025857911,0.99495,2009.9,2009.8,40.80746491]
[1743025858111,0.99495,2009.9,2009.8,41.80242491]
[1743025858411,0.99495,2009.9,2009.8,0.00746491]
[1743025858603,1.69985,2009.9,2009.8,0.00746491]
[1743025859207,3.11225,2009.9,2009.8,0.00746491]
[1743025862705,0.99505,2009.7,2009.6,1.4171]
[1743025863412,2.36255,2009.7,2009.6,1.4171]
[1743025870215,0.99505,2009.7,2009.6,1.4171]
[1743025870615,0.99505,2009.7,2009.6,2.4122]
[1743025870814,0.99505,2009.7,2009.6,1.4171]
[1743025871011,2.35775,2009.7,2009.6,1.4171]
[1743025871622,2.35775,2009.7,2009.6,2.4122]
[1743025874117,0.99505,2009.7,2009.6,2.4122]
[1743025874618,2.42965,2009.7,2009.6,2.4122]
[1743025876819,2.42965,2009.7,2009.6,1.4171]
[1743025877018,2.42965,2009.7,2009.6,2.4122]
[1743025877220,2.42965,2009.7,2009.6,1.4171]
[1743025877520,1.00242491,2009.9,2009.8,0.995]
[1743025877815,0.00746491,2009.9,2009.8,0.995]
[1743025878315,0.00746491,2009.9,2009.8,2.4344]
[1743025879021,0.00746491,2009.9,2009.8,43.2344]
[1743025881114,0.99466,2010.6,2009.8,48.1204]
[1743025881423,0.99458,2010.7,2010.6,0.99452]
[1743025881610,0.99458,2010.7,2010.6,2.41402]
[1743025881611,2.35018,2010.7,2010.6,2.41402]
[1743025881807,2.35015,2010.7,2010.6,2.41402]
[1743025882016,1.3556,2010.7,2010.6,2.41402]
[1743025882413,2.35015,2010.7,2010.6,2.41402]
[1743025882814,1.3556,2010.7,2010.6,2.41402]
[1743025884325,2.37179,2010.9,2010.8,0.9945]
[1743025884724,3.70409,2010.9,2010.8,0.9945]
[1743025885824,0.9945,2010.8,2010.7,2.33274]
[1743025886324,2.3276,2010.8,2010.7,1.3382]
[1743025886718,0.99455,2010.7,2010.6,3.2078]
[1743025886925,0.99465,2010.5,2010.4,0.00746491]
[1743025887925,1.64895,2010.5,2010.4,0.00746491]
[1743025889726,1.64895,2010.5,2010.4,1.39986491]
[1743025890519,0.99464,2010.6,2010.5,0.99465]
[1743025891028,2.29891,2010.7,2010.6,0.9946]
[1743025892819,0.99461,2010.7,2010.6,0.9946]
[1743025893422,8.25804,2010.8,2010.7,0.99455]
[1743025893622,0.99455,2010.7,2010.6,2.40976]
[1743025894430,0.99453,2010.8,2010.7,0.9945]
[1743025894626,0.99453,2010.8,2010.7,2.4097]
[1743025895426,0.99453,2010.8,2010.7,1.4152]
[1743025895627,2.31683,2010.8,2010.7,1.4152]
[1743025896925,0.99453,2010.8,2010.7,1.4152]
[1743025897718,2.31683,2010.8,2010.7,1.4152]
[1743025898922,0.99465,2010.5,2010.4,1.00212491]
[1743025899524,0.99465,2010.5,2010.4,0.00746491]
[1743025899728,0.99465,2010.5,2010.4,1.00216491]
[1743025900531,0.99465,2010.5,2010.4,2.37006491]
[1743025906735,0.99465,2010.5,2010.4,1.37536491]
[1743025911338,0.99465,2010.5,2010.4,2.37006491]
[1743025912442,0.99465,2010.5,2010.4,1.37536491]
[1743025912630,0.99465,2010.5,2010.4,2.37006491]
[1743025912831,0.99465,2010.5,2010.4,1.37536491]
[1743025913639,0.99465,2010.5,2010.4,2.37006491]
[1743025914829,0.99465,2010.5,2010.4,1.37536491]
[1743025915037,0.99465,2010.5,2010.4,2.37006491]
[1743025917237,2.31653,2010.6,2010.5,0.99465]
[1743025917548,1.7091,2010.7,2010.6,0.9946]
[1743025918048,2.39352,2010.8,2010.7,0.99455]
[1743025918345,0.9945,2010.9,2010.8,0.9945]
[1743025918544,0.99444,2011.0,2010.9,0.99442]
[1743025919145,2.36684,2011.0,2010.9,0.99442]
[1743025919741,0.99444,2011.0,2010.9,0.99442]
[1743025920141,2.36684,2011.0,2010.9,41.79442]
[1743025922354,2.36684,2011.0,2010.9,40.8]
[1743025922743,2.36684,2011.0,2010.9,1.3225]
[1743025923449,0.99446,2010.9,2010.8,0.99446]
[1743025923750,2.41036,2010.9,2010.8,2.31696]
[1743025924849,2.41036,2010.9,2010.8,1.3225]
[1743025929252,0.99455,2010.7,2010.6,41.7946]
[1743025929452,0.99455,2010.7,2010.6,43.1738]
[1743025929653,0.99455,2010.7,2010.6,2.3738]
[1743025929855,2.31075,2010.7,2010.6,2.3738]
[1743025930457,0.9946,2010.6,2010.5,3.2078]